bitfinex-derivatives/quotes_BTCF0:USTF0_20251025
["timestamp","ask_amount","ask_price","bid_price","bid_amount"]
[1761408355607,0.10732416,111400.0,111390.0,0.008]
[1761408355806,0.10732416,111400.0,111390.0,0.1912]
[1761408356306,0.13960991,111400.0,111390.0,0.1912]
[1761408357011,0.13960991,111400.0,111390.0,0.008]
[1761408357208,0.13960991,111400.0,111390.0,0.19104]
[1761408358014,0.73960991,111400.0,111370.0,0.0044]
[1761408358310,0.05827,111360.0,111350.0,0.0044]
[1761408358499,0.05827,111350.0,111340.0,0.03118055]
[1761408358701,0.05827,111330.0,111320.0,0.00010002]
[1761408358908,0.08230409,111330.0,111320.0,0.04356002]
[1761408359210,0.05827,111320.0,111310.0,0.04836]
[1761408359708,0.68231099,111320.0,111310.0,0.0049]
[1761408359902,0.08231099,111320.0,111310.0,0.0049]
[1761408360101,0.05832,111310.0,111300.0,0.03112216]
[1761408360310,0.05832,111290.0,111260.0,0.00900977]
[1761408360511,0.05832,111250.0,111240.0,0.04772]
[1761408360815,0.05832,111260.0,111250.0,0.04772]
[1761408361013,0.06904352,111260.0,111250.0,0.05652]
[1761408361204,0.02238,111260.0,111250.0,0.1508877]
[1761408361411,0.00011142,111260.0,111250.0,0.1508821]
[1761408362308,0.05811,111290.0,111270.0,0.1348615]
[1761408362512,0.05811,111300.0,111280.0,0.4570934]
[1761408362706,0.05811,111300.0,111290.0,0.045]
[1761408363019,0.05811,111300.0,111290.0,0.0494]
[1761408363219,0.09382437,111340.0,111310.0,0.045]
[1761408363220,0.05792,111320.0,111310.0,0.045]
[1761408363515,0.05792,111320.0,111310.0,0.4572292]
[1761408363516,7.463e-05,111320.0,111310.0,0.4572292]
[1761408363716,7.463e-05,111320.0,111310.0,0.4616292]
[1761408364110,1e-08,111320.0,111310.0,0.4616292]
[1761408364417,0.00500001,111320.0,111310.0,0.4626292]
[1761408365109,0.00500001,111320.0,111310.0,1.0626292]
[1761408365315,0.01311,111360.0,111320.0,0.00449]
[1761408365518,0.02188,111330.0,111320.0,0.05389]
[1761408365822,0.02188,111330.0,111320.0,0.12105]
[1761408366125,0.04481,111330.0,111320.0,0.37685]
[1761408366814,0.05792,111340.0,111320.0,0.4666712]
[1761408367010,0.04481,111340.0,111330.0,0.37232]
[1761408368522,0.05792,111340.0,111330.0,0.37236]
[1761408368913,0.05992,111340.0,111330.0,0.37436]
[1761408369115,0.04681,111340.0,111330.0,0.37436]
[1761408369821,0.05992,111340.0,111330.0,0.002]
[1761408370018,0.05992,111340.0,111330.0,0.36988]
[1761408371125,0.002,111340.0,111330.0,0.4640931]
[1761408371425,0.002,111340.0,111330.0,0.37428]
[1761408371922,0.002,111340.0,111330.0,0.4640931]
[1761408373927,0.05913298,111380.0,111370.0,0.02218]
[1761408374225,0.08180923,111380.0,111370.0,0.36776]
[1761408374921,0.08180923,111380.0,111330.0,0.002]
[1761408374922,0.01311,111340.0,111330.0,0.002]
[1761408375225,0.05792,111340.0,111330.0,0.002]
[1761408375520,0.08179778,111340.0,111310.0,0.05932]
[1761408375716,0.05792,111350.0,111330.0,0.2110931]
[1761408375918,0.05792,111350.0,111330.0,0.2066929]
[1761408376117,0.05792,111350.0,111340.0,0.0494]
[1761408377214,0.05892,111350.0,111340.0,0.0534]
[1761408377924,0.05992,111350.0,111340.0,0.0534]
[1761408379128,0.05992,111350.0,111340.0,0.38008]
[1761408380428,0.05992,111350.0,111340.0,0.0534]
[1761408380629,0.05992,111350.0,111340.0,0.38]
[1761408383626,0.05992,111350.0,111340.0,0.37952]
[1761408385230,0.08391374,111350.0,111340.0,0.37952]
[1761408386426,0.07080374,111350.0,111340.0,0.480845]
[1761408386636,0.02599374,111350.0,111340.0,0.480845]
[1761408387226,0.04789725,111350.0,111340.0,0.480845]
[1761408387427,0.02388,111350.0,111340.0,0.480845]
[1761408387629,0.002,111350.0,111340.0,0.480845]
[1761408388232,0.02603011,111350.0,111340.0,0.480845]
[1761408388432,0.002,111350.0,111340.0,0.480845]
[1761408391137,0.05792,111370.0,111360.0,0.045]
[1761408391335,0.10601202,111370.0,111360.0,0.37048]
[1761408391531,0.10601202,111370.0,111360.0,0.52353433]
[1761408392337,0.14029777,111370.0,111360.0,0.52353433]
[1761408392538,0.14129777,111370.0,111360.0,0.52353433]
[1761408394038,0.10901202,111370.0,111360.0,0.52353433]
[1761408396741,0.10901202,111370.0,111360.0,0.61332313]
[1761408399350,0.10901202,111370.0,111360.0,0.52353433]
[1761408401643,0.10901202,111370.0,111360.0,0.52793433]
[1761408404439,0.10901202,111370.0,111350.0,0.1027618]
[1761408404440,0.01261,111310.0,111300.0,0.13562644]
[1761408404646,0.0572,111310.0,111300.0,0.19790433]
[1761408404943,0.06852582,111310.0,111300.0,0.21071433]
[1761408405135,0.06864702,111330.0,111320.0,0.01281]
[1761408405446,0.08125702,111330.0,111320.0,0.48229433]
[1761408407552,0.08325702,111330.0,111320.0,0.48229433]
[1761408407750,0.08625702,111330.0,111320.0,0.48229433]
[1761408408748,0.08625702,111330.0,111320.0,0.32924]
[1761408408948,0.08625702,111330.0,111320.0,0.37409]
[1761408409152,0.08625702,111330.0,111320.0,0.3869]
[1761408410655,0.06964702,111330.0,111320.0,0.3879]
[1761408411242,0.04559,111330.0,111320.0,0.3879]
[1761408413938,0.04559,111330.0,111320.0,0.04585]
[1761408413939,0.0582,111330.0,111320.0,0.04585]
[1761408414143,0.0582,111330.0,111320.0,0.20656]
[1761408415354,0.74809,111330.0,111280.0,0.22830949]
[1761408415657,0.04459,111260.0,111250.0,0.12198251]
[1761408415847,0.04459,111260.0,111250.0,0.05766]
[1761408416553,0.04466864,111260.0,111250.0,0.05766]
[1761408416754,0.04866864,111260.0,111250.0,0.09466]
[1761408417257,0.04766864,111260.0,111250.0,0.08666]
[1761408417464,0.04766864,111260.0,111250.0,0.08866]
[1761408418146,0.02559864,111260.0,111250.0,0.08866]
[1761408418354,0.00307864,111260.0,111250.0,0.08866]
[1761408418549,0.04766864,111260.0,111250.0,0.08866]
[1761408419452,0.04766864,111260.0,111250.0,0.41842]
[1761408420053,0.04766864,111260.0,111250.0,0.5082977]
[1761408420357,0.04766864,111260.0,111250.0,0.41842]
[1761408420557,0.00307864,111260.0,111250.0,0.5082977]
[1761408422456,0.02515864,111260.0,111250.0,0.41842]
[1761408422858,0.02515864,111260.0,111250.0,0.5082977]
[1761408423155,0.02515864,111260.0,111250.0,0.41842]
[1761408423355,0.00307864,111260.0,111250.0,0.5082977]
[1761408423751,0.05729,111300.0,111290.0,0.0445]
[1761408423957,0.08071766,111300.0,111290.0,0.0445]
[1761408424859,0.08071766,111300.0,111290.0,0.0475]
[1761408425056,0.08171766,111300.0,111290.0,0.0475]
[1761408428269,0.09084716,111300.0,111290.0,0.0475]
[1761408428564,0.09084716,111300.0,111290.0,0.06129]
[1761408428865,0.06910766,111300.0,111290.0,0.06129]
[1761408430070,0.04568,111300.0,111290.0,0.06129]
[1761408431366,0.06916739,111300.0,111290.0,0.06129]
[1761408435068,0.06916739,111300.0,111290.0,0.1511353]
[1761408435263,0.02448739,111300.0,111290.0,0.1511353]
[1761408435468,0.02448739,111300.0,111290.0,0.37944479]
[1761408436769,0.02448739,111300.0,111290.0,0.97944479]
[1761408436968,0.001,111300.0,111290.0,0.37944479]
[1761408437365,0.02405702,111320.0,111310.0,0.0898292]
[1761408437579,0.06873702,111340.0,111330.0,0.01379]
[1761408437870,0.06873702,111340.0,111330.0,0.37306]
[1761408437871,0.10573624,111340.0,111330.0,0.37306]
[1761408438069,0.09230624,111340.0,111330.0,0.38685]
[1761408438459,0.06824922,111340.0,111330.0,0.38685]
[1761408438660,0.06824922,111340.0,111330.0,0.4766631]
[1761408439471,0.07024922,111340.0,111330.0,0.4766631]
[1761408439672,0.04741922,111340.0,111330.0,0.4766631]
[1761408440065,0.02756922,111340.0,111330.0,0.4766631]
[1761408441863,0.07224922,111340.0,111330.0,0.4766631]
[1761408448171,0.02756922,111340.0,111330.0,0.4766631]
[1761408450069,0.11737422,111340.0,111330.0,0.4766631]
[1761408450668,0.004,111340.0,111330.0,0.4766631]
[1761408450864,0.004,111340.0,111330.0,0.70497259]
[1761408451768,0.002,111340.0,111330.0,0.70697259]
[1761408451963,0.1344852,111360.0,111350.0,0.01378]
[1761408452278,0.15798278,111360.0,111350.0,0.38531]
[1761408452473,0.02349758,111360.0,111350.0,0.70341649]
[1761408452675,0.0897811,111370.0,111360.0,0.0897889]
[1761408452875,0.0897811,111370.0,111340.0,0.11240726]
[1761408452876,0.05953,111310.0,111300.0,0.06432251]
[1761408453072,0.05953,111300.0,111290.0,0.06432251]
[1761408453267,0.05953,111300.0,111290.0,0.06300791]
[1761408453268,0.73219102,111300.0,111290.0,0.06300791]
[1761408453465,0.73219102,111300.0,111290.0,0.39828791]
[1761408453466,0.13219102,111300.0,111290.0,0.39828791]
[1761408453877,0.05953,111300.0,111290.0,0.39828791]
[1761408454377,0.05953,111300.0,111290.0,0.33528]
[1761408454681,0.1360054,111290.0,111280.0,7.387e-05]
[1761408454977,0.7360054,111290.0,111280.0,0.33531387]
[1761408455177,0.1360054,111290.0,111280.0,0.33531387]
[1761408455376,0.14495871,111290.0,111280.0,0.34894387]
[1761408455574,0.14495871,111290.0,111280.0,0.33531387]
[1761408455775,0.18352009,111290.0,111280.0,0.33531387]
[1761408456075,0.16050124,111290.0,111280.0,0.33931387]
[1761408459282,0.17387124,111290.0,111280.0,0.33931387]
[1761408459978,0.17387124,111290.0,111280.0,0.35294387]
[1761408460374,0.17387124,111290.0,111280.0,0.36657387]
[1761408460375,0.77387124,111290.0,111280.0,0.36657387]
[1761408460781,0.77387124,111290.0,111280.0,0.33931387]
[1761408461184,0.77387124,111290.0,111280.0,0.35294387]
[1761408461482,0.77387124,111290.0,111280.0,0.36657387]
[1761408461981,0.17387124,111290.0,111280.0,0.36657387]
[1761408469696,0.17387124,111290.0,111280.0,1.28345387]
[1761408469898,0.05953,111250.0,111240.0,0.0044]
[1761408470200,0.08293496,111250.0,111230.0,0.0049]
[1761408470499,0.08293496,111250.0,111240.0,0.06264]
[1761408470687,0.15562873,111250.0,111240.0,0.06264]
[1761408470886,0.15572441,111250.0,111240.0,0.06264]
[1761408471799,0.15972441,111250.0,111240.0,0.09664]
[1761408472693,0.15972441,111250.0,111240.0,0.10064]
[1761408474692,0.15972441,111250.0,111240.0,0.309]
[1761408475500,0.15972441,111250.0,111240.0,0.038]
[1761408475698,0.15972441,111250.0,111240.0,0.37616]
[1761408475896,0.15972441,111250.0,111240.0,0.37604]
[1761408476096,0.15972441,111250.0,111240.0,0.038]
[1761408476303,0.15972441,111250.0,111240.0,0.25208]
[1761408477502,0.15972441,111250.0,111240.0,0.37192]
[1761408477697,0.15572441,111250.0,111240.0,0.33992]
[1761408477903,0.15772441,111250.0,111240.0,0.35692]
[1761408478105,0.15772441,111250.0,111240.0,0.35664]
[1761408478610,0.15772441,111250.0,111240.0,0.019]
[1761408478810,0.15772441,111250.0,111240.0,0.21408]
[1761408479509,0.18174326,111250.0,111240.0,0.21408]
[1761408479806,0.78174326,111250.0,111240.0,0.21408]
[1761408480006,0.78174326,111250.0,111240.0,0.019]
[1761408480309,0.78174326,111250.0,111240.0,0.35648]
[1761408480606,0.10904949,111250.0,111240.0,0.39188]
[1761408480907,0.08503064,111250.0,111240.0,0.39188]
[1761408481509,0.08514509,111250.0,111240.0,0.39188]
[1761408482412,0.10910922,111250.0,111240.0,0.39188]
[1761408486416,0.14113436,111250.0,111240.0,0.39188]
[1761408487213,0.14113436,111250.0,111240.0,0.38988]
[1761408487410,0.14013436,111250.0,111240.0,0.37488]
[1761408488215,0.14013436,111250.0,111220.0,0.15702362]
[1761408488513,0.05674,111240.0,111230.0,0.33588]
[1761408488712,0.08025941,111240.0,111230.0,0.33588]
[1761408489017,0.08025941,111240.0,111220.0,0.15021362]
[1761408489213,0.01382,111230.0,111220.0,0.15021362]
[1761408489413,0.01382,111230.0,111220.0,0.48697362]
[1761408489614,0.05876454,111230.0,111220.0,1.08697362]
[1761408490016,0.03736454,111230.0,111220.0,1.08597362]
[1761408490213,0.03736454,111230.0,111220.0,1.08797362]
[1761408490415,0.02354454,111230.0,111220.0,1.10397362]
[1761408490808,0.02354454,111230.0,111220.0,0.59387552]
[1761408491014,0.02654454,111230.0,111220.0,0.59987552]
[1761408491512,0.02654454,111230.0,111220.0,0.59787552]
[1761408491715,0.02654454,111230.0,111220.0,0.59987552]
[1761408495717,0.02654454,111230.0,111220.0,1.19987552]
[1761408496022,0.003,111230.0,111220.0,0.59987552]
[1761408496415,0.02649969,111230.0,111220.0,0.59987552]
[1761408496924,0.02411249,111250.0,111240.0,0.0898857]
[1761408497113,0.04761244,111250.0,111240.0,0.57791932]
[1761408497419,0.05613763,111250.0,111240.0,0.57791932]
[1761408497614,0.07963758,111250.0,111240.0,0.57791932]
[1761408497922,0.04761244,111250.0,111240.0,0.57791932]
[1761408498119,0.04961244,111250.0,111240.0,0.57991932]
[1761408501826,0.06343244,111250.0,111240.0,0.57991932]
[1761408503428,0.03941563,111250.0,111240.0,0.57991932]
[1761408504430,0.02559563,111250.0,111240.0,0.57991932]
[1761408507830,0.02559563,111250.0,111240.0,1.17991932]
[1761408509332,0.00209568,111250.0,111240.0,1.17991932]
[1761408510729,0.00209568,111250.0,111240.0,1.24456146]
[1761408515635,0.00209568,111250.0,111240.0,2.16172146]
[1761408521041,0.05829,111270.0,111260.0,0.0898696]
[1761408521240,0.08114246,111270.0,111260.0,0.52998748]
[1761408522336,0.08714246,111270.0,111260.0,0.53198748]
[1761408522849,0.08714246,111270.0,111260.0,0.53178748]
[1761408528145,0.08714246,111270.0,111260.0,0.33232]
[1761408530349,0.08714246,111270.0,111260.0,0.46869572]
[1761408530749,0.08714246,111270.0,111260.0,0.33232]
[1761408532450,0.08714246,111270.0,111260.0,0.33204]
[1761408533552,0.08714246,111270.0,111260.0,0.002]
[1761408533855,0.08714246,111270.0,111260.0,0.33164]
[1761408534650,0.08714246,111270.0,111260.0,0.33156]
[1761408536753,0.08714246,111270.0,111260.0,0.33152]
[1761408537655,0.08714246,111270.0,111260.0,0.33124]
[1761408542459,0.08714246,111270.0,111260.0,0.33072]
[1761408547857,0.08714246,111270.0,111260.0,0.002]
[1761408548063,0.08714246,111270.0,111260.0,0.33028]
[1761408554665,0.08714246,111270.0,111260.0,0.44392672]
[1761408555567,0.08714246,111270.0,111260.0,0.33028]
[1761408559570,0.08714246,111270.0,111260.0,0.53379632]
[1761408560572,0.04267246,111270.0,111260.0,0.53379632]
[1761408561070,0.06489246,111270.0,111260.0,0.53379632]
[1761408561570,0.08689246,111270.0,111260.0,0.53379632]
[1761408561765,0.06489246,111270.0,111260.0,0.53379632]
[1761408562664,0.08689246,111270.0,111260.0,0.53379632]
[1761408563166,0.08689246,111270.0,111260.0,0.32852]
[1761408564772,0.08689246,111270.0,111260.0,0.4183896]
[1761408565665,0.08689246,111270.0,111260.0,0.53203632]
[1761408577677,0.06489246,111270.0,111260.0,0.53203632]
[1761408578178,0.08645246,111270.0,111260.0,0.53203632]
[1761408578879,0.06489246,111270.0,111260.0,0.53203632]
[1761408579176,0.06503246,111270.0,111260.0,0.53203632]
[1761408579380,0.08659246,111270.0,111260.0,0.53203632]
[1761408586177,0.08659246,111270.0,111260.0,0.4183896]
[1761408586384,0.08659246,111270.0,111260.0,0.53203632]
[1761408588990,0.08659246,111270.0,111260.0,0.4183896]
[1761408589189,0.08659246,111270.0,111260.0,0.53203632]
[1761408590188,0.08659246,111270.0,111260.0,0.20551632]
[1761408590489,0.08659246,111270.0,111260.0,0.52991632]
[1761408591401,0.08659246,111270.0,111260.0,0.20551632]
[1761408591693,0.08659246,111270.0,111260.0,0.52979632]
[1761408591990,0.08659246,111270.0,111260.0,0.20551632]
[1761408592191,0.08659246,111270.0,111260.0,0.4161496]
[1761408592393,0.08659246,111270.0,111260.0,0.52979632]
[1761408592594,0.08659246,111270.0,111260.0,0.20551632]
[1761408592890,0.08659246,111270.0,111260.0,0.22821547]
[1761408593088,0.08659246,111270.0,111260.0,0.55241547]
[1761408596398,0.04267246,111270.0,111260.0,0.55241547]
[1761408596599,0.06503246,111270.0,111260.0,0.55241547]
[1761408596992,0.04267246,111270.0,111260.0,0.55241547]
[1761408597592,0.06503246,111270.0,111260.0,0.55241547]
[1761408597893,0.04267246,111270.0,111260.0,0.55241547]
[1761408599999,0.02885246,111270.0,111260.0,0.55241547]
[1761408600200,0.02867,111270.0,111260.0,0.69811547]
[1761408600901,0.08554,111270.0,111260.0,0.69811547]
[1761408601094,0.08554,111270.0,111260.0,0.2375696]
[1761408601299,0.08554,111270.0,111260.0,0.55177547]
[1761408605902,0.09473602,111270.0,111260.0,0.55177547]
[1761408608303,0.09473602,111270.0,111260.0,0.46190587]
[1761408608608,0.09473602,111270.0,111260.0,0.46166587]
[1761408608909,0.09473602,111270.0,111260.0,0.55153547]
[1761408623317,0.05155602,111270.0,111260.0,0.55153547]
[1761408623616,0.09676602,111270.0,111260.0,0.55153547]
[1761408625319,0.06567,111270.0,111260.0,0.55153547]
[1761408626118,0.08757,111270.0,111260.0,0.55153547]
[1761408626522,0.06567,111270.0,111260.0,0.55153547]
[1761408626717,0.02867,111270.0,111260.0,0.55153547]
[1761408627514,0.02867,111270.0,111260.0,0.68788134]
[1761408627714,0.006,111270.0,111260.0,0.55153547]
[1761408628023,0.006,111270.0,111260.0,0.83358134]
[1761408628222,0.006,111270.0,111260.0,0.89790501]
[1761408629621,0.006,111270.0,111260.0,0.90709563]
[1761408630727,0.006,111270.0,111260.0,0.84277196]
[1761408631027,0.01382,111280.0,111270.0,0.0898615]
[1761408631216,0.01382,111280.0,111270.0,0.50825324]
[1761408631217,0.03713,111280.0,111270.0,0.50825324]
[1761408631418,0.01382,111280.0,111270.0,0.50825324]
[1761408632224,0.01482,111280.0,111270.0,0.50825324]
[1761408633226,0.04213,111280.0,111270.0,0.50925324]
[1761408634122,0.03913,111280.0,111270.0,0.51225324]
[1761408634324,0.01582,111280.0,111270.0,0.51225324]
[1761408636830,0.03756,111280.0,111270.0,0.51225324]
[1761408640830,0.06031,111280.0,111270.0,0.51225324]
[1761408641039,0.0829467,111280.0,111270.0,0.46346587]
[1761408641239,0.0829467,111280.0,111270.0,0.32712]
[1761408641428,0.0829467,111280.0,111270.0,0.46346587]
[1761408641933,0.0829467,111280.0,111270.0,0.004]
[1761408642128,0.6829467,111280.0,111270.0,0.32712]
[1761408642329,0.6829467,111280.0,111270.0,0.46346587]
[1761408646041,0.6829467,111280.0,111270.0,0.14034587]
[1761408646242,0.6829467,111280.0,111270.0,0.46346587]
[1761408647143,0.6829467,111280.0,111270.0,0.14034587]
[1761408647341,0.6829467,111280.0,111270.0,0.46346587]
[1761408647646,0.6829467,111280.0,111270.0,0.14034587]
[1761408647850,0.6829467,111280.0,111270.0,0.46346587]
[1761408649444,0.01383,111240.0,111230.0,0.15421307]
[1761408649635,0.05832,111240.0,111230.0,0.42690481]
[1761408649837,0.01383,111250.0,111240.0,0.0898858]
[1761408650044,0.05832,111250.0,111240.0,0.36257754]
[1761408652444,0.06132,111250.0,111240.0,0.39157754]
[1761408652747,0.05832,111250.0,111240.0,0.20552963]
[1761408652949,0.06032,111250.0,111240.0,0.21352963]
[1761408661550,0.06032,111250.0,111240.0,0.53660963]
[1761408670862,0.05744,111260.0,111250.0,0.0898776]
[1761408671063,0.05744,111260.0,111250.0,0.31716526]
[1761408672062,0.05944,111260.0,111250.0,0.32316526]
[1761408681869,0.022706,111270.0,111250.0,0.32316526]
[1761408681870,0.03544,111270.0,111260.0,0.1079996]
[1761408682066,0.0804024,111270.0,111260.0,0.56269343]
[1761408682669,0.08933323,111270.0,111260.0,0.56269343]
[1761408683679,0.09033323,111270.0,111260.0,0.56269343]
[1761408684174,0.0685724,111270.0,111260.0,0.56769343]
[1761408685972,0.0557548,111270.0,111260.0,0.56769343]
[1761408686180,0.04561,111270.0,111260.0,0.56769343]
[1761408686879,0.002,111270.0,111260.0,0.56769343]
[1761408687372,0.002,111270.0,111260.0,0.71339343]
[1761408687978,0.024,111270.0,111260.0,0.71339343]
[1761408688477,0.04561,111270.0,111260.0,0.71339343]
[1761408689071,0.024,111270.0,111260.0,0.71339343]
[1761408689574,0.04561,111270.0,111260.0,0.71339343]
[1761408691081,0.04561,111270.0,111260.0,0.5997496]
[1761408691284,0.04561,111270.0,111260.0,0.71339343]
[1761408692983,0.05888,111270.0,111260.0,0.71339343]
[1761408699090,0.002,111270.0,111260.0,0.71339343]
[1761408699393,0.04497,111280.0,111270.0,0.1351915]
[1761408699582,0.04497,111280.0,111270.0,0.24883533]
[1761408700691,0.04597,111280.0,111270.0,0.24883533]
[1761408700890,0.04697,111280.0,111270.0,0.25183533]
[1761408701994,0.04597,111280.0,111270.0,0.25183533]
[1761408702292,0.04697,111280.0,111270.0,0.25183533]
[1761408702792,0.04697,111280.0,111270.0,0.25583533]
[1761408703192,0.04597,111280.0,111270.0,0.25583533]
[1761408703386,0.04697,111280.0,111270.0,0.25883533]
[1761408705186,0.02365,111280.0,111270.0,0.40453533]
[1761408705490,0.002,111280.0,111270.0,0.40453533]
[1761408705989,0.06658668,111290.0,111280.0,0.0898534]
[1761408706193,0.08953336,111290.0,111280.0,0.56235723]
[1761408707094,0.08063668,111290.0,111280.0,0.56235723]
[1761408707596,0.08163668,111290.0,111280.0,0.56935723]
[1761408708095,0.08263668,111290.0,111280.0,0.56935723]
[1761408708691,0.05969,111290.0,111280.0,0.56935723]
[1761408711694,0.02158162,111300.0,111290.0,0.0898454]
[1761408711897,0.06655162,111300.0,111290.0,0.24725923]
[1761408712098,0.08949231,111300.0,111290.0,0.24725923]
[1761408712703,0.08949231,111300.0,111290.0,0.26987989]
[1761408712893,0.09049231,111300.0,111290.0,0.26987989]
[1761408713197,0.09149099,111300.0,111290.0,0.27587989]
[1761408714596,0.06855162,111300.0,111290.0,0.27587989]
[1761408716198,0.06855162,111300.0,111290.0,0.28494989]
[1761408716495,0.09145569,111300.0,111290.0,0.46470449]
[1761408721194,0.09145569,111300.0,111290.0,0.50833449]
[1761408721693,0.69145569,111300.0,111290.0,0.50833449]
[1761408722101,0.09145569,111300.0,111290.0,0.50833449]
[1761408723301,0.09145569,111300.0,111290.0,0.18589449]
[1761408723504,0.09145569,111300.0,111290.0,0.50829449]
[1761408726499,0.1155674,111300.0,111290.0,0.50829449]
[1761408727104,0.7155674,111300.0,111290.0,0.50829449]
[1761408731808,0.1155674,111300.0,111290.0,0.50829449]
[1761408757029,0.1155674,111300.0,111290.0,0.16399449]
[1761408757324,0.1155674,111300.0,111290.0,0.50877449]
[1761408760618,0.1155674,111300.0,111290.0,0.18685449]
[1761408760930,0.1155674,111300.0,111290.0,0.50873449]
[1761408762826,0.7155674,111300.0,111290.0,0.16399449]
[1761408763031,0.7155674,111300.0,111290.0,0.48583449]
[1761408763629,0.7155674,111300.0,111290.0,0.50869449]
[1761408764333,0.7155674,111300.0,111290.0,0.46410449]
[1761408764532,0.7155674,111300.0,111290.0,0.50980449]
[1761408764725,0.7155674,111300.0,111290.0,0.18796449]
[1761408771836,0.7155674,111300.0,111290.0,0.0517]
[1761408772134,0.7155674,111300.0,111290.0,0.18796449]
[1761408773137,0.66855162,111300.0,111290.0,0.18796449]
[1761408773434,0.71553946,111300.0,111290.0,0.18796449]
[1761408774831,0.71553946,111300.0,111290.0,0.0517]
[1761408777933,0.12341697,111300.0,111290.0,0.0517]
[1761408782427,0.12341697,111300.0,111290.0,0.16530914]
[1761408782742,0.72341697,111300.0,111290.0,0.16530914]
[1761408784841,0.72341697,111300.0,111290.0,0.11960914]
[1761408785739,0.72341697,111300.0,111290.0,0.14217914]
[1761408786133,0.72341697,111300.0,111290.0,0.02857]
[1761408788543,0.72341697,111300.0,111290.0,0.0417474]
[1761408790044,0.72341697,111300.0,111290.0,0.0191774]
[1761408790845,0.72341697,111300.0,111290.0,0.0417474]
[1761408791739,0.72341697,111300.0,111290.0,0.0191774]
[1761408794951,0.72341697,111300.0,111290.0,0.0630474]
[1761408796148,0.72341697,111300.0,111290.0,0.17665654]
[1761408797050,0.12341697,111300.0,111290.0,0.17665654]
[1761408797851,0.72341697,111300.0,111290.0,0.17665654]
[1761408803153,0.12341697,111300.0,111290.0,0.17665654]
[1761408804546,0.12337258,111300.0,111290.0,0.17665654]
[1761408805153,0.12337258,111300.0,111290.0,0.16347914]
[1761408806349,0.12337258,111300.0,111290.0,0.17666322]
[1761408806655,0.12337258,111300.0,111290.0,0.16347914]
[1761408807857,0.12337258,111300.0,111290.0,0.17666594]
[1761408808258,0.12337258,111300.0,111290.0,0.16347914]
[1761408809255,0.12337258,111300.0,111290.0,0.17666694]
[1761408813859,0.11550526,111300.0,111290.0,0.17666694]
[1761408816066,0.1475304,111300.0,111290.0,0.17666694]
[1761408816766,0.14743215,111300.0,111290.0,0.17666694]
[1761408818571,0.14743215,111300.0,111290.0,0.16347914]
[1761408821578,0.11540701,111300.0,111290.0,0.16347914]
[1761408830871,0.14743215,111300.0,111290.0,0.16347914]
[1761408836686,0.14743215,111300.0,111290.0,0.18616355]
[1761408853185,0.11540701,111300.0,111290.0,0.18616355]
[1761408858506,0.14743215,111300.0,111290.0,0.18616355]
[1761408859003,0.12328212,111300.0,111290.0,0.18616355]
[1761408859197,0.14744576,111300.0,111290.0,0.18616355]
[1761408860407,0.10270062,111300.0,111290.0,0.19698355]
[1761408862902,0.07938062,111300.0,111290.0,0.19698355]
[1761408863206,0.10137062,111300.0,111290.0,0.19698355]
[1761408868603,0.10137062,111300.0,111290.0,0.28682895]
[1761408868804,0.10137062,111300.0,111290.0,0.19698355]
[1761408871014,0.07720698,111300.0,111290.0,0.19698355]
[1761408871502,0.07720698,111300.0,111290.0,0.28682885]
[1761408873609,0.05521698,111300.0,111290.0,0.28682885]
[1761408874014,0.03356698,111300.0,111290.0,0.28682885]
[1761408874409,0.05656698,111300.0,111290.0,0.28682885]
[1761408877716,0.03356698,111300.0,111290.0,0.88682885]
[1761408878508,0.05656698,111300.0,111290.0,0.88682885]
[1761408879315,0.07978698,111300.0,111290.0,0.88682885]
[1761408884117,0.05656698,111300.0,111290.0,0.88682885]
[1761408896741,0.05656698,111300.0,111290.0,0.86408115]
[1761408900146,0.05656698,111300.0,111290.0,0.26408115]
[1761408900941,0.03356698,111300.0,111290.0,0.26408115]
[1761408901144,0.02470536,111300.0,111290.0,0.86408115]
[1761408901348,0.08264364,111310.0,111300.0,0.05526]
[1761408901647,0.08264364,111310.0,111300.0,0.6021517]
[1761408902149,0.08264364,111310.0,111300.0,0.691989]
[1761408902343,0.06901364,111310.0,111300.0,0.691989]
[1761408902541,0.07001364,111310.0,111300.0,0.691989]
[1761408902942,0.07101364,111310.0,111300.0,0.695989]
[1761408903847,0.08013505,111310.0,111300.0,0.695989]
[1761408904242,0.04529514,111320.0,111300.0,0.695989]
[1761408904447,0.082584,111320.0,111310.0,0.16817585]
[1761408905448,0.083584,111320.0,111310.0,0.25800505]
[1761408905743,0.084584,111320.0,111310.0,0.26300505]
[1761408905948,0.071314,111320.0,111310.0,0.26300505]
[1761408906143,0.070314,111320.0,111310.0,0.26300505]
[1761408906343,0.071314,111320.0,111310.0,0.26300505]
[1761408907149,0.026164,111320.0,111310.0,0.26300505]
[1761408907849,0.04529514,111330.0,111310.0,0.26300505]
[1761408908045,0.09938586,111330.0,111320.0,0.47882585]
[1761408908940,0.10038586,111330.0,111320.0,0.47882585]
[1761408909344,0.10038586,111330.0,111320.0,0.47982585]
[1761408910248,0.06836072,111330.0,111320.0,0.47982585]
[1761408913353,0.09073257,111330.0,111320.0,0.47982585]
[1761408926958,0.09073257,111330.0,111320.0,0.48889585]
[1761408929260,0.07746257,111330.0,111320.0,0.48889585]
[1761408930356,0.07746257,111330.0,111320.0,0.57871705]
[1761408930861,0.03231257,111330.0,111320.0,0.57871705]
[1761408933864,0.13742285,111350.0,111340.0,0.04458]
[1761408934061,0.13742285,111350.0,111340.0,0.47744585]
[1761408934261,0.10539771,111350.0,111340.0,0.47744585]
[1761408934563,0.13760555,111350.0,111340.0,0.47744585]
[1761408934959,0.14160555,111350.0,111340.0,0.47744585]
[1761408935963,0.14360555,111350.0,111340.0,0.47744585]
[1761408936866,0.09556784,111350.0,111340.0,0.47744585]
[1761408937168,0.07216139,111350.0,111340.0,0.47744585]
[1761408937866,0.14325987,111350.0,111340.0,0.47744585]
[1761408941969,0.07216139,111350.0,111340.0,0.47744585]
[1761408942161,0.07216139,111350.0,111340.0,0.48826585]
[1761408943078,1e-08,111350.0,111340.0,0.48826585]
[1761408943263,0.16292241,111360.0,111340.0,0.48826585]
[1761408943569,0.16292241,111360.0,111350.0,0.17212585]
[1761408944568,0.16892241,111360.0,111350.0,0.17212585]
[1761408944968,0.17092241,111360.0,111350.0,0.17212585]
[1761408945268,0.17092241,111360.0,111350.0,0.17312585]
[1761408945669,0.16892241,111360.0,111350.0,0.17312585]
[1761408945872,0.19300708,111360.0,111350.0,0.17312585]
[1761408947782,0.20209882,111360.0,111350.0,0.17312585]
[1761408956685,0.20209882,111360.0,111350.0,0.33190106]